[Event "44th Chess Olympiad Open 2022"]
[Site "Chennai"]
[Date "2022.08.03"]
[Round "6.51"]
[White "Harper, Ryan"]
[Black "Yan, Austin K"]
[Result "0-1"]
[WhiteElo "2208"]
[BlackElo "1568"]
[Annotator "TA"]
[PlyCount "64"]
[EventDate "2022.??.??"]
[TimeControl "60"]

{[%evp 20,64,45,31,49,24,41,45,56,0,57,57,97,36,105,20,16,0,11,-10,0,0,0,0,0,
-132,-111,-216,-233,-225,-209,-192,-130,-138,-146,-972,-967,-1035,-1036,-1023,
-1002,-1007,-994,-1022,-1025,-972,-966]} 1. e4 {[%emt 0:00:03]} c5 {[%emt 0:00:
00]} 2. Nf3 {[%emt 0:00:06]} d6 {[%emt 0:00:06]} 3. d4 {[%emt 0:00:05]} cxd4 {
[%emt 0:00:04]} 4. Nxd4 {[%emt 0:00:05]} Nf6 {[%emt 0:00:06]} 5. Nc3 {[%emt 0:
00:00]} Nc6 {[%emt 0:00:51]} 6. Bg5 {[%emt 0:02:23]} e6 {[%emt 0:01:10]} 7. Qd2
{[%emt 0:01:53]} a6 {[%emt 0:01:17]} 8. O-O-O {[%emt 0:00:34]} Bd7 {[%emt 0:00:
00]} 9. f3 {[%emt 0:00:07]} Nxd4 {[%emt 0:06:35]} 10. Qxd4 {[%emt 0:01:51]} Be7
{[%emt 0:00:07]} 11. h4 {[%emt 0:05:35]} h5 {[%emt 0:09:18] B67: Sicilian:
Richter-Rauzer: 7...a6 8 0-0-0 Bd7, lines without 9 f4 Be7.} 12. Kb1 {[%emt 0:
00:00]} Rc8 {[%emt 0:03:31]} 13. f4 {[%emt 0:05:09] [#]} Qc7 $146 {[%emt 0:00:
00][%cal Yd6d5] White is slightly better.} ({Predecessor:} 13... Bc6 14. Be2
Qc7 15. Bf3 e5 16. Qd2 b5 17. fxe5 dxe5 18. Nd5 Bxd5 19. exd5 Qd6 {1-0 (49)
Bezemer,A (2276)-Van der Poel,H (2295) Netherlands 2001}) 14. Rd2 {[%emt 0:00:
00]} ({White should play} 14. Be2 $1 $14) 14... e5 {[%emt 0:04:33]} (14... Qc5
$11) 15. Qd3 $14 {[%emt 0:02:47]} Bc6 {[%emt 0:04:43]} 16. f5 {[%emt 0:03:13]}
(16. g3 $16) 16... Nd7 {[%emt 0:16:29]} (16... Ng4 $14) 17. Bxe7 {[%emt 0:00:
00] White is more active.} (17. Be2 $16) 17... Kxe7 $11 {[%emt 0:02:25]} 18.
Qe3 {[%emt 0:02:49]} b5 {[%emt 0:07:04]} 19. a3 {[%emt 0:00:43]} (19. Ne2 $5 {
[%cal Re2g3]}) 19... Nf6 {[%emt 0:04:28]} 20. Be2 $1 {[%emt 0:16:32]} Rhd8 {
[%emt 0:03:00]} 21. Qg5 {[%emt 0:08:42]} Kf8 {[%emt 0:00:32]} 22. Bf3 {[%emt 0:
00:00] [#]} (22. Rh3 $11) 22... a5 $1 $17 {[%emt 0:02:19] White must now
prevent ...b4.} 23. Nd5 {[%emt 0:05:54] Inhibits b4.} (23. Rh3 $17) 23... Bxd5
$19 {[%emt 0:01:19]} 24. exd5 {[%emt 0:03:18]} b4 {[%emt 0:00:01] Hoping for ..
.bxa3.} 25. a4 {[%emt 0:00:10]} b3 {[%emt 0:00:20]} ({Better is} 25... Re8 $19
{[%cal Yb4b3] And now ...b3! would win.} 26. Re1 e4) 26. cxb3 $17 {[%emt 0:00:
00]} Qb6 {[%emt 0:00:31]} 27. Bxh5 $2 {[%emt 0:06:17] [#] This costs White the
game.} (27. Rh3 $17) 27... Ne4 $19 {[%emt 0:01:11] Black is clearly winning.}
28. f6 {[%emt 0:02:28]} Nxg5 {[%emt 0:02:41]} 29. hxg5 {[%emt 0:00:17]} Qe3 {
[%emt 0:04:28]} 30. Be2 {[%emt 0:06:54]} Kg8 {[%emt 0:00:00]} 31. Rd3 {[%emt 0:
03:33]} Qxg5 {[%emt 0:00:32]} (31... Qxe2 {is a self mate.} 32. Rdh3 Qc2+ 33.
Ka2) 32. Rdh3 {[%emt 0:00:38]} gxf6 {[%emt 0:00:36] Weighted Error Value:
White=0.70/Black=0.16 (very precise)} 0-1

[Event "44th Chess Olympiad Open 2022"]
[Site "Chennai"]
[Date "2022.08.03"]
[Round "6.51"]
[White "Liu, Yeh Yang"]
[Black "Johnson, Joshua"]
[Result "0-1"]
[WhiteElo "1994"]
[BlackElo "2178"]
[Annotator "RC"]
[PlyCount "120"]
[EventDate "2022.??.??"]
[TimeControl "60"]

1. e4 {[%emt 0:00:03]} e5 {[%emt 0:00:07]} 2. Nc3 {[%emt 0:00:02]} Nf6 {
[%emt 0:00:21]} 3. g3 {[%emt 0:00:05]} c6 {[%emt 0:01:37]} 4. d4 {[%emt 0:00:
00]} Qa5 {[%emt 0:04:05]} 5. Bg2 {[%emt 0:04:05]} Bb4 {[%emt 0:06:18]} 6. Nge2
{[%emt 0:00:03]} d5 {[%emt 0:02:14]} 7. O-O {[%emt 0:02:14]} Nxe4 {[%emt 0:00:
00]} 8. Nxe4 {[%emt 0:00:09]} dxe4 {[%emt 0:00:05]} 9. c3 {[%emt 0:02:08]} Be7
{[%emt 0:03:27]} 10. Bxe4 {[%emt 0:04:11]} Nd7 {[%emt 0:00:10]} 11. Re1 {
[%emt 0:01:41]} O-O {[%emt 0:11:43]} 12. Bg2 {[%emt 0:06:59]} exd4 {[%emt 0:00:
00]} 13. Nxd4 {[%emt 0:00:24]} Bf6 {[%emt 0:00:58]} 14. Bf4 {[%emt 0:03:34]}
Qb6 {[%emt 0:15:58]} 15. Nb3 {[%emt 0:04:02]} Rd8 {[%emt 0:06:39]} 16. Qc2 {
[%emt 0:04:05]} Nf8 {[%emt 0:00:35]} 17. Be3 {[%emt 0:00:08]} Qc7 {[%emt 0:00:
00]} 18. Bf4 {[%emt 0:00:02]} Qb6 {[%emt 0:00:40]} 19. Be3 {[%emt 0:00:49]} Qc7
{[%emt 0:00:04]} 20. Nc5 {[%emt 0:00:11]} Ne6 {[%emt 0:09:04]} 21. Ne4 {
[%emt 0:00:02]} Be7 {[%emt 0:00:05]} 22. a4 {[%emt 0:01:39]} f5 {[%emt 0:05:04]
} 23. Nd2 {[%emt 0:02:34]} f4 {[%emt 0:03:16]} 24. gxf4 {[%emt 0:00:05]} Bd6 {
[%emt 0:00:18]} 25. f5 {[%emt 0:07:20]} Nf4 {[%emt 0:03:35]} 26. Be4 {[%emt 0:
00:00]} Rf8 {[%emt 0:00:12]} 27. Nf3 {[%emt 0:02:12]} Qf7 {[%emt 0:01:24]} 28.
Red1 {[%emt 0:10:41]} Bc7 {[%emt 0:02:00]} 29. Bc5 {[%emt 0:00:48]} Bxf5 {
[%emt 0:00:53]} 30. Bxf5 {[%emt 0:04:38]} Qxf5 {[%emt 0:00:40]} 31. Qxf5 {
[%emt 0:00:05]} Rxf5 {[%emt 0:00:02]} 32. Rd7 {[%emt 0:02:01]} Ne6 {[%emt 0:00:
00]} 33. Nd4 {[%emt 0:00:42]} Bxh2+ {[%emt 0:01:26]} 34. Kxh2 {[%emt 0:00:07]}
Rxf2+ {[%emt 0:00:33]} 35. Kg1 {[%emt 0:07:29]} Nxc5 {[%emt 0:00:04]} 36. Rxb7
{[%emt 0:00:03]} Raf8 {[%emt 0:02:07]} 37. Rxa7 {[%emt 0:00:20]} R2f6 {[%emt 0:
00:00]} 38. Re1 {[%emt 0:00:23]} Rg6+ {[%emt 0:00:40]} 39. Kh1 {[%emt 0:00:01]}
Rh6+ {[%emt 0:00:55]} 40. Kg1 {[%emt 0:00:02]} Rg6+ {[%emt 0:00:07]} 41. Kh1 {
[%emt 0:30:02]} Nd3 {[%emt 0:08:09]} 42. Re6 {[%emt 0:00:00]} Rg4 {[%emt 0:00:
00]} 43. Ree7 {[%emt 0:00:00]} h5 {[%emt 0:05:07]} 44. Ne6 {[%emt 0:00:00]}
Rf1+ {[%emt 0:00:11]} 45. Kh2 {[%emt 0:00:00]} Rf2+ {[%emt 0:02:49]} 46. Kh1 {
[%emt 0:00:00]} Rf1+ {[%emt 0:00:50]} 47. Kh2 {[%emt 0:00:00]} Rf2+ {[%emt 0:
00:00]} 48. Kh1 {[%emt 0:00:00]} Rfg2 {[%emt 0:00:04]} 49. Rxg7+ {[%emt 0:00:
00]} Rxg7 {[%emt 0:00:04]} 50. Rxg7+ {[%emt 0:00:00]} Rxg7 {[%emt 0:00:03]} 51.
Nxg7 {[%emt 0:00:00]} Kxg7 {[%emt 0:00:03]} 52. b4 {[%emt 0:00:00]} Nb2 {
[%emt 0:02:05]} 53. a5 {[%emt 0:00:00]} Nc4 {[%emt 0:00:10]} 54. Kg2 {[%emt 0:
00:00]} Kf6 {[%emt 0:00:14]} 55. a6 {[%emt 0:00:00]} Ke5 {[%emt 0:00:14]} 56.
a7 {[%emt 0:00:00]} Nb6 {[%emt 0:00:03]} 57. Kf3 {[%emt 0:00:00]} Kd5 {[%emt 0:
00:00]} 58. Kf4 {[%emt 0:00:00]} Kc4 {[%emt 0:01:28]} 59. Ke5 {[%emt 0:00:00]}
h4 {[%emt 0:00:27]} 60. Kd6 {[%emt 0:00:00]} Nc8+ {[%emt 0:00:18]} 0-1

[Event "44th Chess Olympiad Open 2022"]
[Site "Chennai"]
[Date "2022.08.03"]
[Round "6.51"]
[White "Wu, Bing-Shen"]
[Black "Winter Atwell, Adrian"]
[Result "0-1"]
[WhiteElo "1660"]
[BlackElo "2250"]
[Annotator "NA RC"]
[PlyCount "74"]
[EventDate "2022.??.??"]
[TimeControl "60"]

1. c4 {[%emt 0:00:10]} e5 {[%emt 0:00:21]} 2. Nc3 {[%emt 0:00:08]} Bb4 {
[%emt 0:00:23]} 3. g3 {[%emt 0:00:36]} Bxc3 {[%emt 0:00:30]} 4. dxc3 {[%emt 0:
00:00]} d6 {[%emt 0:00:54]} 5. e4 {[%emt 0:00:50]} Nc6 {[%emt 0:01:21]} 6. Be3
{[%emt 0:02:56]} Nge7 {[%emt 0:02:28]} 7. f3 {[%emt 0:05:18]} O-O {[%emt 0:00:
00]} 8. Nh3 {[%emt 0:01:20]} f5 {[%emt 0:01:43]} 9. Nf2 {[%emt 0:00:34]} Be6 {
[%emt 0:06:48]} 10. Bd3 {[%emt 0:05:32]} f4 {[%emt 0:04:12]} 11. Bd2 {[%emt 0:
00:00]} Ng6 {[%emt 0:00:56]} 12. Be2 {[%emt 0:19:48]} Qf6 {[%emt 0:03:22]} 13.
Qc2 {[%emt 0:05:52]} Rad8 {[%emt 0:05:09]} 14. O-O-O {[%emt 0:01:38]} a6 {
[%emt 0:02:34]} 15. b3 {[%emt 0:05:56]} Na5 {[%emt 0:02:06]} 16. Nd3 {[%emt 0:
00:00]} b5 {[%emt 0:01:08]} 17. c5 {[%emt 0:04:18]} Nb7 {[%emt 0:02:28]} 18. c6
{[%emt 0:03:37]} Na5 {[%emt 0:05:17]} 19. Nb4 {[%emt 0:01:14]} Ra8 {[%emt 0:00:
00]} 20. c4 {[%emt 0:09:15]} Qf7 {[%emt 0:02:42]} 21. cxb5 {[%emt 0:00:54]}
axb5 {[%emt 0:03:08]} 22. Rhf1 {[%emt 0:09:06]} Rfb8 {[%emt 0:03:54]} 23. Bd3 {
[%emt 0:03:05]} Rb6 {[%emt 0:02:41]} 24. gxf4 {[%emt 0:06:44]} Nxf4 {[%emt 0:
00:00]} 25. Be3 {[%emt 0:00:14]} Rbb8 {[%emt 0:03:58]} 26. Bxf4 {[%emt 0:04:24]
} Qxf4+ {[%emt 0:00:25]} 27. Kb2 {[%emt 0:01:11]} Nc4+ {[%emt 0:01:14]} 28.
Bxc4 {[%emt 0:04:00]} bxc4 {[%emt 0:00:13]} 29. Nd5 {[%emt 0:00:07]} Bxd5 {
[%emt 0:00:19]} 30. exd5 {[%emt 0:00:23]} cxb3 {[%emt 0:00:33]} 31. axb3 {
[%emt 0:00:07]} Qb4 {[%emt 0:02:25]} 32. Rd3 {[%emt 0:01:03]} Rb5 {[%emt 0:00:
00]} 33. Ra1 {[%emt 0:00:47]} Rab8 {[%emt 0:02:00]} 34. Qc3 {[%emt 0:00:47]}
Qf4 {[%emt 0:00:27]} 35. Qc2 {[%emt 0:00:19]} Rc5 {[%emt 0:00:24]} 36. Qe2 {
[%emt 0:00:11]} h6 {[%emt 0:01:50]} 37. Ra7 {[%emt 0:00:20]} Qc1+ {[%emt 0:00:
00]} 0-1

[Event "44th Chess Olympiad Open 2022"]
[Site "Chennai"]
[Date "2022.08.03"]
[Round "6.52"]
[White "Zaibi, Amir"]
[Black "Attalib, Osama A."]
[Result "1-0"]
[WhiteElo "2398"]
[BlackElo "2033"]
[Annotator "TA"]
[PlyCount "77"]
[EventDate "2022.??.??"]
[TimeControl "60"]

{[%evp 11,77,24,20,9,7,0,0,7,6,2,9,8,21,11,55,25,29,22,35,31,55,42,49,42,34,42,
42,29,39,50,76,79,182,164,302,297,297,284,280,270,312,312,310,307,297,288,312,
312,312,295,336,343,415,415,415,414,505,505,600,547,526,508,1162,1168,29958,
29960,4810,4702]} 1. e4 {[%emt 0:00:03]} e5 {[%emt 0:00:15]} 2. Nf3 {[%emt 0:
00:00]} Nc6 {[%emt 0:00:15]} 3. Bb5 {[%emt 0:00:09]} a6 {[%emt 0:01:33]} 4. Ba4
{[%emt 0:00:06]} Nf6 {[%emt 0:00:27]} 5. d3 {[%emt 0:00:30]} Bc5 {[%emt 0:00:
00]} 6. Bxc6 {[%emt 0:01:57]} dxc6 {[%emt 0:00:22]} 7. Qe2 {[%emt 0:00:22] C77:
Ruy Lopez: 3...a6 4 Ba4 Nf6, unusual lines.} Qe7 {[%emt 0:01:35]} 8. Nc3 {
[%emt 0:01:10]} Bg4 {[%emt 0:08:55]} 9. h3 {[%emt 0:00:46] The position is
equal.} Bxf3 {[%emt 0:01:39]} 10. Qxf3 {[%emt 0:00:13] [#]} h6 $146 {[%emt 0:
00:00] Prevents Bg5.} ({Predecessor:} 10... Nd7 11. Be3 Bxe3 12. Qxe3 Nc5 13.
f4 exf4 14. Qxf4 Ne6 15. Qg3 O-O 16. O-O Nd4 {1-0 (44) Grinberg,E (2472)
-Berczes,D (2452) Charlotte 2019}) 11. Ne2 {[%emt 0:10:05]} Nh7 {[%emt 0:11:46]
} 12. Bd2 {[%emt 0:03:10]} Nf6 {[%emt 0:06:29]} 13. O-O-O {[%emt 0:02:56]}
O-O-O {[%emt 0:00:18]} 14. Kb1 {[%emt 0:00:38]} Kb8 {[%emt 0:01:54]} 15. Rhf1 {
[%emt 0:00:39][%cal Yh1f1,Yf1f4,Yf4f8]} Rd7 {[%emt 0:05:10]} 16. Ng3 {[%emt 0:
07:32]} g6 {[%emt 0:01:23] Inhibits Nf5.} 17. Qe2 {[%emt 0:04:09]} Bd6 {
[%emt 0:06:55]} 18. f4 {[%emt 0:07:50]} exf4 {[%emt 0:02:40]} 19. Bxf4 {
[%emt 0:00:08]} Bxf4 {[%emt 0:03:49]} 20. Rxf4 {[%emt 0:00:05]} Qe5 {[%emt 0:
00:00]} 21. Rdf1 {[%emt 0:06:37] Black is now going downhill.} Ne8 {[%emt 0:00:
00]} (21... Nh7 $16) 22. Qg4 $18 {[%emt 0:06:23]} Qe6 {[%emt 0:03:38]} (22...
f5 $142 23. exf5 (23. Qxg6 fxe4 24. Rxe4 Rg7 $16) 23... gxf5 24. Nxf5 (24. Rxf5
Qg7 $16) (24. Qxf5 Re7 $16) 24... Nd6) 23. Qxe6 {[%emt 0:06:05]} ({Not} 23.
Rxf7 Qxf7 24. Rxf7 Rxf7 $16) 23... fxe6 {[%emt 0:00:08]} 24. Rf8 {[%emt 0:00:
00]} Rdh7 {[%emt 0:11:15]} 25. e5 {[%emt 0:00:28]} Ka7 {[%emt 0:00:12]} 26.
Rxh8 {[%emt 0:01:39]} Rxh8 {[%emt 0:00:08] Endgame KRN-KRN} 27. Rf7 {[%emt 0:
00:07] Against Ng7} Rg8 {[%emt 0:01:51]} 28. Ne4 {[%emt 0:00:24]} Rg7 {[%emt 0:
00:59]} 29. Rf8 {[%emt 0:01:01]} Re7 {[%emt 0:00:10]} 30. c4 {[%emt 0:00:00]
[%cal Yc2c4,Yc4c5]} b6 {[%emt 0:01:25]} 31. c5 {[%emt 0:00:30]} b5 {[%emt 0:00:
55]} 32. b4 {[%emt 0:01:56]} a5 {[%emt 0:01:32]} 33. a3 {[%emt 0:00:04][%cal
Ya2a3,Ya3b4]} axb4 {[%emt 0:00:07]} 34. axb4 {[%emt 0:00:03]} Kb7 {[%emt 0:00:
13]} 35. Kc2 {[%emt 0:00:15]} Ng7 {[%emt 0:00:00]} 36. g4 {[%emt 0:00:17]
Prevents Nf5.} ({Less strong is} 36. Rf6 Nh5 $18) 36... Nf5 {[%emt 0:01:36]} (
36... Ne8 $142 37. Rg8 Ng7) 37. gxf5 {[%emt 0:00:00]} exf5 {[%emt 0:02:25] [#]}
38. Nd6+ $1 {[%emt 0:00:16]} cxd6 {[%emt 0:01:02]} 39. cxd6 {[%emt 0:00:30]
Weighted Error Value: White=0.03 (flawless) /Black=0.44} 1-0

[Event "44th Chess Olympiad Open 2022"]
[Site "Chennai"]
[Date "2022.08.03"]
[Round "6.52"]
[White "Bouzidi, Ahmed"]
[Black "Fates, Omer Salah"]
[Result "0-1"]
[WhiteElo "2148"]
[BlackElo "1940"]
[Annotator "NA RC"]
[PlyCount "96"]
[EventDate "2022.??.??"]
[TimeControl "60"]

1. e4 {[%emt 0:00:11]} c5 {[%emt 0:00:34]} 2. c3 {[%emt 0:00:09]} Nf6 {[%emt 0:
00:00]} 3. e5 {[%emt 0:00:05]} Nd5 {[%emt 0:00:09]} 4. d4 {[%emt 0:01:22]} cxd4
{[%emt 0:01:02]} 5. Nf3 {[%emt 0:00:05]} Nc6 {[%emt 0:01:45]} 6. Bc4 {[%emt 0:
00:00]} e6 {[%emt 0:07:54]} 7. O-O {[%emt 0:01:29]} Nb6 {[%emt 0:01:11]} 8. Bb3
{[%emt 0:00:58]} Be7 {[%emt 0:03:43]} 9. cxd4 {[%emt 0:02:09]} O-O {[%emt 0:00:
00]} 10. Nc3 {[%emt 0:00:47]} d5 {[%emt 0:01:37]} 11. Bc2 {[%emt 0:13:27]} Nd7
{[%emt 0:03:23]} 12. Qd3 {[%emt 0:01:58]} f5 {[%emt 0:01:14]} 13. exf6 {
[%emt 0:00:18]} Nxf6 {[%emt 0:00:14]} 14. a3 {[%emt 0:02:30]} Qe8 {[%emt 0:00:
00]} 15. Ne5 {[%emt 0:02:24]} Qh5 {[%emt 0:01:45]} 16. f4 {[%emt 0:13:48]} Qh4
{[%emt 0:18:51]} 17. Be3 {[%emt 0:04:15]} Nxe5 {[%emt 0:05:39]} 18. fxe5 {
[%emt 0:05:21]} Ng4 {[%emt 0:00:38]} 19. Rxf8+ {[%emt 0:00:13]} Bxf8 {[%emt 0:
00:00]} 20. h3 {[%emt 0:16:01]} Nxe3 {[%emt 0:00:30]} 21. Qxe3 {[%emt 0:00:09]}
Bd7 {[%emt 0:00:49]} 22. Kh2 {[%emt 0:03:58]} g6 {[%emt 0:04:11]} 23. g3 {
[%emt 0:05:09]} Bh6 {[%emt 0:01:40]} 24. Qg1 {[%emt 0:07:28]} Qg5 {[%emt 0:00:
00]} 25. Re1 {[%emt 0:00:19]} Rf8 {[%emt 0:01:40]} 26. h4 {[%emt 0:00:48]} Qg4
{[%emt 0:07:34]} 27. Bd1 {[%emt 0:07:00]} Qf5 {[%emt 0:00:17]} 28. Qg2 {
[%emt 0:04:49]} Qf2 {[%emt 0:01:38]} 29. Qxf2 {[%emt 0:01:50]} Rxf2+ {[%emt 0:
00:00]} 30. Kh3 {[%emt 0:00:12]} Rxb2 {[%emt 0:00:27]} 31. Rf1 {[%emt 0:03:48]}
Rd2 {[%emt 0:00:38]} 32. Ba4 {[%emt 0:00:47]} Bxa4 {[%emt 0:02:02]} 33. Nxa4 {
[%emt 0:00:05]} b6 {[%emt 0:00:17]} 34. Rf6 {[%emt 0:01:01]} Be3 {[%emt 0:00:
00]} 35. Rxe6 {[%emt 0:00:27]} Bxd4 {[%emt 0:00:25]} 36. Re8+ {[%emt 0:00:34]}
Kf7 {[%emt 0:00:02]} 37. Rc8 {[%emt 0:00:26]} Ke6 {[%emt 0:01:01]} 38. Rc6+ {
[%emt 0:00:33]} Kxe5 {[%emt 0:00:18]} 39. Rc7 {[%emt 0:00:31]} b5 {[%emt 0:00:
00]} 40. Nc5 {[%emt 0:00:17]} Kd6 {[%emt 0:00:14]} 41. Na6 {[%emt 0:30:17]} h5
{[%emt 0:31:00]} 42. Rc1 {[%emt 0:00:57]} Bb2 {[%emt 0:03:32]} 43. Rb1 {
[%emt 0:00:29]} Bxa3 {[%emt 0:02:07]} 44. Rxb5 {[%emt 0:00:22]} Kc6 {[%emt 0:
00:00]} 45. Rb8 {[%emt 0:00:25]} Rb2 {[%emt 0:01:35]} 46. Rg8 {[%emt 0:00:00]}
Rb6 {[%emt 0:00:00]} 47. Rc8+ {[%emt 0:00:00]} Kb7 {[%emt 0:00:29]} 48. Rc3 {
[%emt 0:00:00]} Rxa6 {[%emt 0:00:00]} 0-1

[Event "44th Chess Olympiad Open 2022"]
[Site "Chennai"]
[Date "2022.08.03"]
[Round "6.52"]
[White "Alhassadi, Yousef A."]
[Black "Boudriga, Mohamed Ali"]
[Result "0-1"]
[WhiteElo "2068"]
[BlackElo "2308"]
[Annotator "TA"]
[PlyCount "136"]
[EventDate "2022.??.??"]
[TimeControl "60"]

{[%evp 9,136,52,37,37,58,52,54,60,66,47,75,37,93,96,92,77,91,29,58,56,54,33,22,
-133,-147,-132,-18,-15,-9,-5,-9,-12,-11,-12,-14,-16,-11,-9,-12,-20,0,0,0,-15,
-14,-64,-60,-61,0,-6,0,0,0,0,0,0,0,-4,0,0,0,0,0,0,0,0,5,0,0,0,0,0,0,0,0,-65,
-47,-160,-107,-104,-99,-118,-63,-71,-24,-36,-30,-42,-30,-89,-66,-149,-51,-65,
-53,-72,0,-140,-145,-146,-141,-268,-283,-424,-353,-439,-439,-425,-418,-416,
-396,-847,-829,-808,-794,-1243,-1184,-12827,-12828,-5285,-3433,-12841,-12840,
-12841,-12835,-12837,-12736,-12838,-6330]} 1. e4 {[%emt 0:00:03]} c5 {[%emt 0:
00:00]} 2. c3 {[%emt 0:00:06]} d6 {[%emt 0:06:44]} 3. d4 {[%emt 0:00:12]} Qc7 {
[%emt 0:00:20]} 4. h3 {[%emt 0:03:44]} Nf6 {[%emt 0:00:28]} 5. Bd3 {[%emt 0:00:
00]} e6 {[%emt 0:02:52]} 6. Nf3 {[%emt 0:00:30] B22: Sicilian: 2 c3.} Nbd7 {
[%emt 0:00:42]} 7. O-O {[%emt 0:00:28]} Be7 {[%emt 0:00:18] [#]} 8. Qe2 $146 {
[%emt 0:01:51] White is slightly better.} ({Predecessor:} 8. Be3 a6 9. a4 b6
10. Nbd2 Bb7 11. b4 c4 12. Bc2 O-O 13. Ne1 a5 14. b5 {½-½ (29) Ambrosi,E 
(2118)-Borda,L (2211) Budapest 2005}) 8... a6 {[%emt 0:00:47]} 9. a4 {[%emt 0:
00:00]} b6 {[%emt 0:02:05]} 10. Bf4 {[%emt 0:00:52]} e5 {[%emt 0:08:55]} (10...
O-O $14) 11. Bh2 {[%emt 0:10:08]} O-O {[%emt 0:00:39]} 12. Nbd2 {[%emt 0:00:52]
} Re8 {[%emt 0:02:59]} 13. Bc4 {[%emt 0:15:48]} (13. dxe5 $16 dxe5 14. Rfd1)
13... Bb7 {[%emt 0:07:34]} 14. dxe5 {[%emt 0:11:21]} (14. Rfc1 {is more
complex.} Rec8 15. Re1 h6 16. Rec1) 14... Nxe5 {[%emt 0:00:31]} 15. Bxe5 {
[%emt 0:06:12]} dxe5 {[%emt 0:00:26]} 16. Bxf7+ $2 {[%emt 0:00:14]} Kxf7 $17 {
[%emt 0:00:45]} 17. Ng5+ {[%emt 0:00:05]} Kg8 {[%emt 0:38:03]} (17... Kg6 $1
$17 {[%cal Rg6g5]} 18. Ndf3 Bd8) 18. Qc4+ $11 {[%emt 0:11:53] [#]} Nd5 $1 {
[%emt 0:00:06]} 19. Ngf3 {[%emt 0:10:54]} ({Don't go for} 19. Ne6 $2 Qd6 20.
Nxg7 (20. exd5 $2 Bxd5 21. Qg4 Bxe6 $19) 20... Kxg7 $19) 19... b5 {[%emt 0:00:
00]} 20. Qa2 {[%emt 0:00:05] [#] Pin} c4 $1 {[%emt 0:02:32]} 21. exd5 {[%emt 0:
00:05]} Bxd5 {[%emt 0:00:17] aiming for ...e4.} 22. Rfe1 {[%emt 0:00:00]
Prevents e4.} Bf8 {[%emt 0:00:32]} 23. Ne4 {[%emt 0:00:51]} Qc6 {[%emt 0:00:00]
} 24. Qb1 {[%emt 0:01:31]} bxa4 {[%emt 0:05:12]} 25. Qc2 {[%emt 0:00:25]} Rab8
{[%emt 0:01:40]} 26. Nfg5 {[%emt 0:05:32][%cal Ye4f6] Threatening mate with
Nf6+!} Be7 {[%emt 0:05:23] Inhibits Nf6+.} 27. Re3 {[%emt 0:10:32]} (27. Qxa4
$11 Qxa4 28. Rxa4) 27... Qg6 {[%emt 0:02:19]} 28. Nf3 {[%emt 0:00:33]} a3 {
[%emt 0:02:00]} (28... Bc5 $15 29. Re2 Rxb2 $1 30. Qxb2 Bxe4) 29. bxa3 {
[%emt 0:00:09]} Bc5 {[%emt 0:02:15]} 30. Re2 {[%emt 0:00:16]} Bf8 {[%emt 0:00:
00]} 31. a4 {[%emt 0:00:35]} h6 {[%emt 0:00:36]} 32. Rd1 {[%emt 0:00:58]} Qc6 {
[%emt 0:00:24]} 33. Rde1 {[%emt 0:00:57]} Qg6 {[%emt 0:01:39]} 34. Rd1 {
[%emt 0:00:50]} Qc6 {[%emt 0:01:07]} 35. Rde1 {[%emt 0:00:05]} Qg6 {[%emt 0:00:
00]} 36. Rd1 {[%emt 0:00:06]} Bc6 {[%emt 0:00:16]} 37. Qa2 {[%emt 0:00:19]} Qf7
{[%emt 0:00:17]} (37... Rb3 $5 {[%cal Rc6e4]} 38. Rde1 Bd5 $11) 38. Rde1 {
[%emt 0:00:54]} Rb3 {[%emt 0:01:11]} 39. Nfd2 {[%emt 0:01:20]} Ra3 {[%emt 0:00:
00]} 40. Qxc4 {[%emt 0:00:06]} Qxc4 {[%emt 0:00:24]} (40... Qd5 {with more
complications.} 41. Qxa6 Rxc3 42. Qb6 Rd3) 41. Nxc4 {[%emt 0:30:08]} Rxa4 {
[%emt 0:30:18]} 42. Ned2 {[%emt 0:00:00]} (42. Nb6 $11 Rxe4 43. Rxe4) 42... e4
$15 {[%emt 0:00:00]} 43. f3 {[%emt 0:00:00] [#]} (43. Ne3 $1 $15) 43... Rc8 {
[%emt 0:00:00]} (43... a5 $142 $1 44. Kh2 Ra2 45. fxe4 a4) 44. Ne5 $17 {
[%emt 0:00:00]} exf3 {[%emt 0:00:00]} 45. gxf3 {[%emt 0:00:00]} Be8 {[%emt 0:
00:00]} (45... Bd5 $17 46. c4 Be6) 46. Ne4 $15 {[%emt 0:00:00]} Bb5 {[%emt 0:
00:00]} ({Better is} 46... Ra5 $17 47. f4 Bc6 48. Nxc6 Rxc6) 47. Rd2 {[%emt 0:
00:00]} Be7 {[%emt 0:00:00]} 48. Ng6 {[%emt 0:00:00]} Ba3 {[%emt 0:00:20]} 49.
h4 {[%emt 0:01:49]} (49. Ne5 $11 {keeps the balance.}) 49... Kh7 {[%emt 0:00:
00]} 50. Rg2 {[%emt 0:02:06]} (50. Ne5 $15) 50... Be8 {[%emt 0:01:47]} ({
Black should play} 50... Re8 $17 {Threatens to win with ...Bc6.} 51. h5 Bc6)
51. Nf4 $1 {[%emt 0:01:02]} Bf7 {[%emt 0:00:26] Against Ne6} 52. Rd1 {[%emt 0:
00:00]} Rc7 {[%emt 0:00:07] Against Rd7} (52... Bc5+ $17 53. Kh2 Be3) 53. Rd8 {
[%emt 0:00:30] Black converts the advantage convincingly.} (53. Nd5 $11 {
remains equal.} Bxd5 54. Rxd5) 53... Be7 $36 {[%emt 0:00:40][%csl Yd8,Yh4]
Black has strong initiative. This bishop pair is nice.} 54. Ra8 {[%emt 0:00:58]
} Bxh4 {[%emt 0:00:12]} 55. Rg4 {[%emt 0:00:42]} (55. Rd2 $17 {was worth a try.
}) 55... Be7 $19 {[%emt 0:00:20]} 56. Nd3 {[%emt 0:00:28]} (56. Kf2 $142) 56...
Ra1+ {[%emt 0:00:15]} 57. Kg2 {[%emt 0:00:06]} Bd5 {[%emt 0:00:00]} ({Avoid
the trap} 57... Be6 $2 58. Rf4 $19) 58. Re8 {[%emt 0:00:26]} Bc6 {[%emt 0:00:
57]} 59. Rb8 {[%emt 0:00:37]} Ra2+ {[%emt 0:00:13]} 60. Kg3 $2 {[%emt 0:00:59]}
(60. Rb2 Rxb2+ 61. Nxb2) 60... Bxe4 {[%emt 0:00:24] Black is clearly winning.}
61. Rxe4 {[%emt 0:00:26]} Bd6+ {[%emt 0:00:14]} 62. Nf4 {[%emt 0:00:38]} g5 {
[%emt 0:00:48]} 63. Ree8 {[%emt 0:00:24]} Bxf4+ {[%emt 0:00:00]} 64. Kg4 {
[%emt 0:00:18]} Rg2+ {[%emt 0:02:24]} 65. Kh3 {[%emt 0:00:10]} Rg3+ {[%emt 0:
00:07]} 66. Kh2 {[%emt 0:00:05]} Rxf3+ {[%emt 0:00:13]} 67. Kg2 {[%emt 0:00:05]
} Rfxc3 {[%emt 0:00:16] ( -> ...Rg3+)} 68. Rh8+ {[%emt 0:00:29]} Kg6 {[%emt 0:
00:12] Weighted Error Value: White=0.35/Black=0.17 (very precise)} 0-1